[Event "World Senior chT-50 2019"]
[Site "Rhodes"]
[Date "2019.04.22"]
[Round "7.24"]
[White "Fieandt, John"]
[Black "Papadimitriou, Loukas"]
[Result "0-1"]
[ECO "A54"]
[WhiteElo "2151"]
[BlackElo "1943"]
[Annotator "NA"]
[PlyCount "126"]
[EventDate "2019.04.16"]
[EventType "team-tourn"]
[EventCountry "GRE"]
[SourceTitle "playchess.com"]
[Source "ChessBase"]
[SourceQuality "1"]
[WhiteTeam "Finland"]
[BlackTeam "Greece"]
[WhiteTeamCountry "FIN"]
[BlackTeamCountry "GRE"]
[TimeControl "40/5400+30:1800+30"]

1. d4 {[%emt 0:00:00]} d6 {[%emt 0:00:00]} 2. Nf3 {[%emt 0:05:31]} Nf6 {[%emt 0:01:47]} 3. c4 {[%emt 0:00:18]} Nbd7 {[%emt 0:00:05]} 4. g3 {[%emt 0:01:16]} e5 {[%emt 0:00:07]} 5. Bg2 {[%emt 0:00:08]} Be7 {[%emt 0:00:08]} 6. O-O {[%emt 0:00:18]} O-O {[%emt 0:00:04]} 7. Nc3 {[%emt 0:00:19]} c6 {[%emt 0:00:16]} 8. h3 {[%emt 0:01:31]} Re8 {[%emt 0:00:39]} 9. Rb1 {[%emt 0:01:56]} Qc7 {[%emt 0:06:22]} 10. b4 {[%emt 0:13:46]} exd4 {[%emt 0:01:29]} 11. Nxd4 {[%emt 0:04:21]} Nb6 {[%emt 0:00:17]} 12. Qb3 $11 {[%emt 0:04:05]} d5 {[%emt 0:00:14]} 13. cxd5 {[%emt 0:05:38]} Nbxd5 {[%emt 0:02:16]} 14. Nxd5 {[%emt 0:00:50]} Nxd5 {[%emt 0:01:02]} 15. b5 {[%emt 0:01:12]} Rd8 {[%emt 0:18:01]} 16. Rd1 {[%emt 0:13:44]} c5 {[%emt 0:09:16]} 17. Bxd5 {[%emt 0:01:17]} cxd4 {[%emt 0:00:56]} 18. Bxf7+ {[%emt 0:02:35]} Kh8 {[%emt 0:00:44]} 19. Be6 {[%emt 0:04:24]} Qe5 {[%emt 0:00:28]} 20. Bxc8 {[%emt 0:00:54]} Raxc8 {[%emt 0:00:09]} 21. Bf4 {[%emt 0:02:25]} Qf5 {[%emt 0:02:36]} 22. Rbc1 {[%emt 0:07:36]} Bc5 {[%emt 0:10:56]} 23. Qf3 {[%emt 0:03:27]} Rf8 {[%emt 0:05:12]} 24. Qg4 {[%emt 0:01:37]} Qd5 {[%emt 0:06:57]} 25. Rd3 {[%emt 0:00:58]} b6 {[%emt 0:06:47]} 26. h4 {[%emt 0:07:29]} Rce8 {[%emt 0:03:13]} 27. Rc2 {[%emt 0:01:01]} Qe4 {[%emt 0:04:25]} 28. Qf3 {[%emt 0:01:04]} Qe6 {[%emt 0:00:24]} 29. Kg2 {[%emt 0:00:19]} h6 {[%emt 0:00:24]} 30. Qc6 {[%emt 0:03:13]} Qg4 {[%emt 0:00:27]} 31. Qf3 {[%emt 0:00:46]} Qe6 {[%emt 0:01:27]} 32. a4 {[%emt 0:01:11]} Kg8 {[%emt 0:00:48]} 33. Qc6 {[%emt 0:00:25]} Qg4 {[%emt 0:00:13]} 34. f3 {[%emt 0:01:02]} Qh5 {[%emt 0:00:34]} 35. a5 {[%emt 0:00:26]} Rf6 {[%emt 0:01:34]} 36. Qd7 {[%emt 0:01:32]} Re7 {[%emt 0:02:58]} 37. Qc8+ {[%emt 0:01:52]} Kh7 {[%emt 0:02:09]} 38. Qg4 {[%emt 0:02:49]} Qe8 {[%emt 0:00:45]} 39. Kf2 {[%emt 0:04:13]} Qxb5 {[%emt 0:00:20]} 40. axb6 {[%emt 0:00:00]} axb6 {[%emt 0:00:00]} 41. h5 {[%emt 0:00:38]} Qe8 {[%emt 0:04:07]} 42. Ra2 {[%emt 0:03:01]} Qf7 {[%emt 0:03:23]} 43. Rc2 {[%emt 0:02:59]} Rf5 {[%emt 0:01:15]} 44. Qg6+ {[%emt 0:02:56]} Qxg6 {[%emt 0:00:02]} 45. hxg6+ {[%emt 0:00:02]} Kxg6 {[%emt 0:00:09]} 46. Bc1 {[%emt 0:02:15]} h5 {[%emt 0:01:20]} 47. Bb2 {[%emt 0:01:26]} Rd5 {[%emt 0:00:57]} 48. Rcd2 {[%emt 0:01:13]} Re3 {[%emt 0:02:35]} 49. Rd1 {[%emt 0:01:55]} Rxd3 {[%emt 0:00:08]} 50. Rxd3 {[%emt 0:00:03]} Kf5 {[%emt 0:01:29]} 51. Kf1 {[%emt 0:09:34]} Ke6 {[%emt 0:00:04]} 52. e3 {[%emt 0:00:22]} dxe3 {[%emt 0:00:32]} 53. Rxd5 {[%emt 0:00:07]} Kxd5 {[%emt 0:00:17]} 54. Bxg7 {[%emt 0:00:03]} b5 {[%emt 0:02:14]} 55. Ke2 {[%emt 0:00:21]} Kc4 {[%emt 0:01:16]} 56. f4 {[%emt 0:01:50]} b4 {[%emt 0:00:16]} 57. f5 {[%emt 0:00:08]} b3 {[%emt 0:01:24]} 58. Bb2 {[%emt 0:00:10]} Bd4 {[%emt 0:01:57]} 59. Ba3 {[%emt 0:00:20]} Kd5 {[%emt 0:04:23]} 60. Bc1 {[%emt 0:06:57]} Ke5 {[%emt 0:00:34]} 61. Kd3 {[%emt 0:00:14]} Kxf5 {[%emt 0:00:34]} 62. Bxe3 {[%emt 0:01:44]} Bxe3 {[%emt 0:00:31]} 63. Kc3 {[%emt 0:00:01]} Kg4 {[%emt 0:00:27]} 0-1

[Event "World Senior chT-50 2019"]
[Site "Rhodes"]
[Date "2019.04.22"]
[Round "7.25"]
[White "Grant, Jonathan I M"]
[Black "Ross, David"]
[Result "1/2-1/2"]
[ECO "A06"]
[WhiteElo "2226"]
[BlackElo "2312"]
[Annotator "NA"]
[PlyCount "88"]
[EventDate "2019.04.16"]
[EventType "team-tourn"]
[EventCountry "GRE"]
[SourceTitle "playchess.com"]
[Source "ChessBase"]
[SourceQuality "1"]
[WhiteTeam "Scotland"]
[BlackTeam "Canada"]
[WhiteTeamCountry "SCO"]
[BlackTeamCountry "CAN"]
[TimeControl "40/5400+30:1800+30"]

1. c4 {[%emt 0:01:18]} c6 {[%emt 0:00:02]} 2. Nf3 {[%emt 0:01:23]} d5 {[%emt 0:00:21]} 3. e3 {[%emt 0:00:06]} e6 {[%emt 0:04:08]} 4. b3 {[%emt 0:01:10]} Nf6 {[%emt 0:00:59]} 5. Bb2 {[%emt 0:00:19]} Nbd7 {[%emt 0:01:01]} 6. Be2 {[%emt 0:01:43]} Bd6 {[%emt 0:00:31]} 7. d4 {[%emt 0:00:48]} Ne4 {[%emt 0:03:25]} 8. O-O {[%emt 0:05:51]} O-O {[%emt 0:02:45]} 9. Ne5 {[%emt 0:08:26]} f6 {[%emt 0:08:27]} 10. Nd3 {[%emt 0:04:02]} f5 {[%emt 0:04:36]} 11. f4 {[%emt 0:02:01]} b6 {[%emt 0:03:19]} 12. Nd2 $11 {[%emt 0:01:31]} Bb7 {[%emt 0:04:01]} 13. Nf3 {[%emt 0:05:05]} Qe7 {[%emt 0:01:49]} 14. Nde5 {[%emt 0:11:33]} Rfd8 {[%emt 0:03:06]} 15. Rc1 {[%emt 0:06:04]} Rac8 {[%emt 0:02:54]} 16. Rc2 {[%emt 0:03:55]} c5 {[%emt 0:17:33]} 17. Qa1 {[%emt 0:10:14]} Bxe5 {[%emt 0:06:15]} 18. Nxe5 {[%emt 0:01:40]} Nxe5 {[%emt 0:00:16]} 19. dxe5 {[%emt 0:03:45]} dxc4 {[%emt 0:01:32]} 20. bxc4 {[%emt 0:03:19]} Rc7 {[%emt 0:06:23]} 21. a4 {[%emt 0:03:20]} Rcd7 {[%emt 0:00:38]} 22. Bc1 {[%emt 0:03:14]} Qh4 {[%emt 0:05:22]} 23. Bf3 {[%emt 0:04:58]} Bc6 {[%emt 0:05:33]} 24. a5 {[%emt 0:05:42]} b5 {[%emt 0:00:09]} 25. g3 {[%emt 0:04:43]} Qe7 {[%emt 0:00:28]} 26. cxb5 {[%emt 0:01:02]} Bxb5 {[%emt 0:01:38]} 27. Re1 {[%emt 0:00:10]} Bd3 {[%emt 0:03:07]} 28. Rg2 {[%emt 0:00:49]} Rb7 {[%emt 0:00:52]} 29. Ba3 {[%emt 0:02:20]} Qc7 {[%emt 0:00:30]} 30. Rb2 {[%emt 0:01:57]} Rxb2 {[%emt 0:01:25]} 31. Bxb2 {[%emt 0:00:25]} c4 {[%emt 0:00:10]} 32. Bd4 {[%emt 0:01:06]} Nc5 {[%emt 0:03:46]} 33. Qa3 {[%emt 0:01:00]} Nb3 {[%emt 0:00:58]} 34. Bc3 {[%emt 0:00:12]} Be4 {[%emt 0:00:59]} 35. Bxe4 {[%emt 0:00:56]} fxe4 {[%emt 0:00:03]} 36. Qa4 {[%emt 0:00:19]} h6 {[%emt 0:01:56]} 37. Bb4 {[%emt 0:01:00]} Nc5 {[%emt 0:01:34]} 38. Bxc5 {[%emt 0:00:52]} Qxc5 {[%emt 0:00:02]} 39. Re2 {[%emt 0:00:29]} Qd5 {[%emt 0:01:47]} 40. Kf2 {[%emt 0:00:00]} Rc8 {[%emt 0:00:00]} 41. Rc2 {[%emt 0:04:25]} Qd3 {[%emt 0:02:52]} 42. Qa2 {[%emt 0:03:56]} Rc5 {[%emt 0:05:00]} 43. Rd2 {[%emt 0:00:54]} Qc3 {[%emt 0:00:03]} 44. Rd8+ {[%emt 0:02:40]} Kf7 {[%emt 0:06:28]} 1/2-1/2

[Event "World Senior chT-50 2019"]
[Site "Rhodes"]
[Date "2019.04.22"]
[Round "7.26"]
[White "Ross, Paul"]
[Black "Farrell, Neil"]
[Result "0-1"]
[ECO "A46"]
[WhiteElo "2237"]
[BlackElo "2132"]
[Annotator "NA"]
[PlyCount "76"]
[EventDate "2019.04.16"]
[EventType "team-tourn"]
[EventCountry "GRE"]
[SourceTitle "playchess.com"]
[Source "ChessBase"]
[SourceQuality "1"]
[WhiteTeam "Canada"]
[BlackTeam "Scotland"]
[WhiteTeamCountry "CAN"]
[BlackTeamCountry "SCO"]
[TimeControl "40/5400+30:1800+30"]

1. d4 {[%emt 0:00:28]} e6 {[%emt 0:00:51]} 2. Nf3 {[%emt 0:00:33]} Nf6 {[%emt 0:00:21]} 3. g3 {[%emt 0:00:28]} b5 {[%emt 0:01:55]} 4. Bg2 {[%emt 0:00:50]} Bb7 {[%emt 0:00:09]} 5. O-O {[%emt 0:00:50]} c5 {[%emt 0:01:51]} 6. c3 {[%emt 0:02:19]} Be7 {[%emt 0:07:36]} 7. a4 {[%emt 0:05:40]} b4 {[%emt 0:01:23]} 8. cxb4 {[%emt 0:02:54]} cxb4 {[%emt 0:01:28]} 9. Nbd2 {[%emt 0:08:05]} a5 {[%emt 0:14:56]} 10. Nb3 $11 {[%emt 0:08:09]} O-O {[%emt 0:00:43]} 11. Bf4 {[%emt 0:00:28]} d6 {[%emt 0:03:49]} 12. Ne1 {[%emt 0:06:18]} Bxg2 {[%emt 0:04:42]} 13. Kxg2 {[%emt 0:00:06]} Nbd7 {[%emt 0:00:57]} 14. Nd3 {[%emt 0:00:46]} Nb6 {[%emt 0:04:00]} 15. f3 {[%emt 0:04:06]} Nfd5 {[%emt 0:07:37]} 16. e4 {[%emt 0:03:29]} Nxf4+ {[%emt 0:00:25]} 17. Nxf4 {[%emt 0:00:40]} Qd7 {[%emt 0:05:15]} 18. d5 {[%emt 0:20:55]} e5 {[%emt 0:08:05]} 19. Nd3 {[%emt 0:04:03]} Rfc8 {[%emt 0:06:45]} 20. Rf2 {[%emt 0:08:59]} Nc4 {[%emt 0:03:45]} 21. Qe2 {[%emt 0:02:55]} Qa7 {[%emt 0:08:05]} 22. Re1 {[%emt 0:02:29]} Bd8 {[%emt 0:01:10]} 23. f4 {[%emt 0:01:05]} Bb6 {[%emt 0:01:03]} 24. Rf3 {[%emt 0:00:19]} Qd7 {[%emt 0:03:20]} 25. Nd2 {[%emt 0:01:31]} Nxd2 {[%emt 0:01:17]} 26. Qxd2 {[%emt 0:00:07]} Bd4 {[%emt 0:00:48]} 27. fxe5 {[%emt 0:07:00]} dxe5 {[%emt 0:00:41]} 28. Rf5 {[%emt 0:01:25]} Qxa4 {[%emt 0:03:25]} 29. Re2 {[%emt 0:00:37]} f6 {[%emt 0:01:08]} 30. g4 {[%emt 0:00:12]} Qd7 {[%emt 0:03:54]} 31. h3 {[%emt 0:00:29]} b3 {[%emt 0:00:00]} 32. Qd1 {[%emt 0:03:44]} a4 {[%emt 0:00:00]} 33. g5 {[%emt 0:00:28]} a3 {[%emt 0:01:10]} 34. bxa3 {[%emt 0:00:38]} Rxa3 {[%emt 0:00:06]} 35. Kh2 {[%emt 0:02:52]} Ra2 {[%emt 0:00:47]} 36. Nf4 {[%emt 0:01:15]} exf4 {[%emt 0:01:04]} 37. Rxa2 {[%emt 0:00:01]} bxa2 {[%emt 0:00:06]} 38. Qxd4 {[%emt 0:00:02]} Rc2+ {[%emt 0:01:02]} 0-1

[Event "World Senior chT-50 2019"]
[Site "Rhodes"]
[Date "2019.04.22"]
[Round "7.27"]
[White "Neave, George"]
[Black "Barron, Michael"]
[Result "1-0"]
[ECO "A04"]
[WhiteElo "2101"]
[BlackElo "2124"]
[Annotator "NA"]
[PlyCount "41"]
[EventDate "2019.04.16"]
[EventType "team-tourn"]
[EventCountry "GRE"]
[SourceTitle "playchess.com"]
[Source "ChessBase"]
[SourceQuality "1"]
[WhiteTeam "Scotland"]
[BlackTeam "Canada"]
[WhiteTeamCountry "SCO"]
[BlackTeamCountry "CAN"]
[TimeControl "40/5400+30:1800+30"]

1. Nf3 {[%emt 0:00:00]} f5 {[%emt 0:00:00]} 2. d3 d6 {[%emt 0:00:01]} 3. e4 e5 {[%emt 0:00:30]} 4. Nc3 Nc6 {[%emt 0:00:30]} 5. exf5 Bxf5 {[%emt 0:00:30]} 6. d4 exd4 {[%emt 0:00:30]} 7. Nxd4 Nxd4 {[%emt 0:00:30]} 8. Qxd4 Bxc2 {[%emt 0:00:30]} 9. Bc4 Qf6 {[%emt 0:00:30]} 10. Qd2 Qe5+ {[%emt 0:00:30]} 11. Kf1 Bg6 {[%emt 0:00:30]} 12. Nd5 Kd7 {[%emt 0:00:30]} 13. Qa5 b6 {[%emt 0:00:30]} 14. Qa4+ Kd8 {[%emt 0:00:30]} 15. Bf4 Be8 {[%emt 0:00:30]} 16. Qc2 Qh5 {[%emt 0:00:30]} 17. Nxc7 Rc8 {[%emt 0:00:30]} 18. Ne6+ Ke7 {[%emt 0:00:30]} 19. Re1 Rxc4 {[%emt 0:00:30]} 20. Qxc4 Bb5 {[%emt 0:00:30]} 21. Nc7+ 1-0

[Event "World Senior chT-50 2019"]
[Site "Rhodes"]
[Date "2019.04.22"]
[Round "7.28"]
[White "Chernik, Dmitry"]
[Black "Smith, Peter R"]
[Result "0-1"]
[ECO "B23"]
[WhiteElo "1868"]
[BlackElo "2038"]
[Annotator "NA"]
[PlyCount "118"]
[EventDate "2019.04.16"]
[EventType "team-tourn"]
[EventCountry "GRE"]
[SourceTitle "playchess.com"]
[Source "ChessBase"]
[SourceQuality "1"]
[WhiteTeam "Canada"]
[BlackTeam "Scotland"]
[WhiteTeamCountry "CAN"]
[BlackTeamCountry "SCO"]
[TimeControl "40/5400+30:1800+30"]

1. e4 {[%emt 0:00:00]} c5 {[%emt 0:00:00]} 2. Nc3 {[%emt 0:00:00]} Nc6 3. f4 {[%emt 0:00:12]} e6 4. Bb5 {[%emt 0:00:30]} Nge7 5. Nf3 {[%emt 0:00:30]} a6 6. Bxc6 {[%emt 0:00:30]} Nxc6 7. O-O {[%emt 0:00:30]} d5 8. e5 {[%emt 0:00:30]} Be7 9. d3 {[%emt 0:00:30]} O-O 10. Kh1 {[%emt 0:00:30]} b5 11. Ne2 {[%emt 0:00:30]} c4 12. d4 {[%emt 0:00:30]} b4 13. c3 {[%emt 0:00:30]} a5 14. Qc2 {[%emt 0:00:30]} a4 15. Ng3 {[%emt 0:00:30]} a3 16. bxa3 {[%emt 0:00:30]} bxc3 17. Qxc3 {[%emt 0:00:30]} Bd7 18. Ne2 {[%emt 0:00:30]} Qa5 19. Rb1 {[%emt 0:00:30]} Rfb8 20. Rxb8+ {[%emt 0:00:30]} Nxb8 21. Qb2 {[%emt 0:00:30]} Bxa3 22. Qxa3 {[%emt 0:00:30]} Qxa3 23. Bxa3 {[%emt 0:00:30]} Rxa3 24. Rc1 {[%emt 0:00:30]} Rxa2 25. Nc3 {[%emt 0:00:30]} Ra3 26. Kg1 {[%emt 0:00:30]} Kf8 27. Kf2 {[%emt 0:00:30]} Nc6 28. Ke3 {[%emt 0:00:30]} Nb4 29. Kd2 {[%emt 0:00:30]} Na2 30. Rc2 {[%emt 0:00:30]} Nxc3 31. Rxc3 {[%emt 0:00:30]} Ra2+ 32. Rc2 {[%emt 0:00:30]} Rxc2+ 33. Kxc2 {[%emt 0:00:30]} Ba4+ 34. Kd2 {[%emt 0:00:30]} f6 35. Ng1 {[%emt 0:00:30]} fxe5 36. fxe5 {[%emt 0:00:30]} g5 37. Ne2 {[%emt 0:00:30]} Be8 38. Nc3 {[%emt 0:00:30]} Kg7 39. Ke3 {[%emt 0:00:30]} Kg6 40. Kf3 {[%emt 0:00:30]} Kf5 41. g3 {[%emt 0:30:30]} h5 42. h3 {[%emt 0:00:30]} h4 43. g4+ {[%emt 0:00:30]} Kg6 44. Ke3 {[%emt 0:00:30]} Kg7 45. Kd2 {[%emt 0:00:30]} Bg6 46. Nd1 {[%emt 0:00:30]} Be4 47. Ne3 {[%emt 0:00:30]} Kf7 48. Kc3 {[%emt 0:00:30]} Ke7 49. Kb4 {[%emt 0:00:30]} Kd7 50. Ka4 {[%emt 0:00:30]} Kc6 51. Kb4 {[%emt 0:00:30]} Kb6 52. Ka4 {[%emt 0:00:30]} c3 53. Kb3 {[%emt 0:00:30]} c2 54. Nxc2 {[%emt 0:00:30]} Bxc2+ 55. Kxc2 {[%emt 0:00:30]} Ka5 56. Kb3 {[%emt 0:00:30]} Kb5 57. Kc3 {[%emt 0:00:30]} Ka4 58. Kc2 {[%emt 0:00:30]} Kb4 59. Kd3 {[%emt 0:00:30]} Kb3 0-1

[Event "World Senior chT-50 2019"]
[Site "Rhodes"]
[Date "2019.04.22"]
[Round "7.29"]
[White "Strutinskaia, Galina"]
[Black "Lagerborg, Krister"]
[Result "1-0"]
[ECO "E71"]
[WhiteElo "2208"]
[BlackElo "2102"]
[Annotator "NA"]
[PlyCount "65"]
[EventDate "2019.04.16"]
[EventType "team-tourn"]
[EventCountry "GRE"]
[SourceTitle "playchess.com"]
[Source "ChessBase"]
[SourceQuality "1"]
[WhiteTeam "Russia"]
[BlackTeam "Sweden"]
[WhiteTeamCountry "RUS"]
[BlackTeamCountry "SWE"]
[TimeControl "40/5400+30:1800+30"]

1. d4 {[%emt 0:00:00]} Nf6 {[%emt 0:00:00]} 2. c4 {[%emt 0:00:00]} g6 {[%emt 0:00:00]} 3. Nc3 {[%emt 0:00:00]} Bg7 {[%emt 0:00:00]} 4. e4 {[%emt 0:00:00]} d6 {[%emt 0:00:00]} 5. Be3 {[%emt 0:00:26]} O-O {[%emt 0:00:00]} 6. h3 {[%emt 0:00:14]} e5 {[%emt 0:00:27]} 7. d5 {[%emt 0:00:08]} Ne8 {[%emt 0:00:30]} 8. Qd2 {[%emt 0:05:43]} f5 {[%emt 0:00:45]} 9. exf5 {[%emt 0:02:47]} gxf5 {[%emt 0:00:24]} 10. f4 {[%emt 0:00:19]} a5 {[%emt 0:01:17]} 11. Nf3 {[%emt 0:01:19]} Na6 {[%emt 0:00:32]} 12. Be2 {[%emt 0:03:41]} b6 {[%emt 0:01:16]} 13. O-O-O {[%emt 0:18:19]} Kh8 {[%emt 0:04:14]} 14. g4 {[%emt 0:00:16]} Nc5 {[%emt 0:05:38]} 15. Qc2 {[%emt 0:03:32]} ({Better is} 15. g5 $16) 15... Qe7 $16 {[%emt 0:09:22]} ({Better is} 15... exf4 $14 16. Bxf4 Nf6) 16. Rh2 {[%emt 0:06:28]} Bd7 {[%emt 0:07:12]} 17. g5 {[%emt 0:02:12]} Ne4 {[%emt 0:06:46]} 18. h4 {[%emt 0:01:09]} Nxc3 {[%emt 0:03:50]} 19. bxc3 {[%emt 0:02:04]} Rb8 {[%emt 0:06:20]} 20. h5 {[%emt 0:03:30]} exf4 {[%emt 0:03:11]} 21. Bxf4 {[%emt 0:00:08]} Be5 {[%emt 0:04:44]} 22. Qd2 {[%emt 0:00:28]} c6 {[%emt 0:01:11]} 23. Nxe5 {[%emt 0:09:32]} dxe5 {[%emt 0:00:14]} 24. Qe3 {[%emt 0:03:07]} Qa3+ {[%emt 0:04:39]} 25. Kb1 {[%emt 0:00:07]} exf4 {[%emt 0:03:48]} 26. Qe5+ {[%emt 0:00:20]} Kg8 {[%emt 0:00:25]} 27. dxc6 {[%emt 0:04:33]} Bxc6 {[%emt 0:03:31]} 28. Qe6+ {[%emt 0:03:47]} Kh8 {[%emt 0:01:28]} 29. Qxc6 {[%emt 0:00:09]} Qxc3 {[%emt 0:05:37]} 30. Rd7 {[%emt 0:02:27]} Qe5 {[%emt 0:05:42]} 31. Bd3 {[%emt 0:02:32]} f3 {[%emt 0:01:47]} 32. Rh1 {[%emt 0:04:42]} Rg8 {[%emt 0:06:31]} 33. Rxh7+ {[%emt 0:00:40]} 1-0

[Event "World Senior chT-50 2019"]
[Site "Rhodes"]
[Date "2019.04.22"]
[Round "7.30"]
[White "Gamback, Bjorn"]
[Black "Grabuzova, Tatiana"]
[Result "1/2-1/2"]
[ECO "A40"]
[WhiteElo "2101"]
[BlackElo "2323"]
[Annotator "NA"]
[PlyCount "46"]
[EventDate "2019.04.16"]
[EventType "team-tourn"]
[EventCountry "GRE"]
[SourceTitle "playchess.com"]
[Source "ChessBase"]
[SourceQuality "1"]
[WhiteTeam "Sweden"]
[BlackTeam "Russia"]
[WhiteTeamCountry "SWE"]
[BlackTeamCountry "RUS"]
[TimeControl "40/5400+30:1800+30"]

1. c4 {[%emt 0:00:00]} b6 {[%emt 0:00:19]} 2. d4 {[%emt 0:00:00]} e6 {[%emt 0:00:05]} 3. e4 {[%emt 0:00:00]} Bb7 {[%emt 0:00:05]} 4. Bd3 {[%emt 0:00:00]} Bb4+ {[%emt 0:00:12]} 5. Kf1 {[%emt 0:00:22]} Be7 {[%emt 0:00:21]} 6. Nc3 {[%emt 0:00:17]} d6 {[%emt 0:13:23]} 7. Nf3 {[%emt 0:02:23]} Nd7 {[%emt 0:00:26]} 8. h4 {[%emt 0:01:36]} Ngf6 {[%emt 0:07:37]} 9. Rh3 {[%emt 0:04:23]} c5 {[%emt 0:04:00]} 10. d5 {[%emt 0:03:58]} e5 {[%emt 0:13:59]} 11. Nh2 $16 {[%emt 0:06:19]} a6 {[%emt 0:18:14]} 12. Be2 {[%emt 0:06:45]} Qc7 {[%emt 0:02:38]} 13. a4 {[%emt 0:04:38]} a5 {[%emt 0:06:40]} 14. Nb5 {[%emt 0:04:09]} Qd8 {[%emt 0:00:14]} 15. Qc2 {[%emt 0:00:18]} Kf8 {[%emt 0:02:33]} 16. f4 {[%emt 0:01:28]} Ne8 {[%emt 0:01:06]} 17. Nf3 {[%emt 0:00:34]} Nc7 {[%emt 0:01:29]} 18. Nxc7 {[%emt 0:02:41]} Qxc7 {[%emt 0:00:09]} 19. fxe5 {[%emt 0:00:07]} dxe5 {[%emt 0:01:11]} 20. Nh2 {[%emt 0:23:55]} Bc8 {[%emt 0:04:49]} 21. h5 {[%emt 0:04:30]} h6 {[%emt 0:00:21]} 22. Bg4 {[%emt 0:00:43]} Bg5 {[%emt 0:07:14]} 23. Nf3 {[%emt 0:05:00]} Bxc1 {[%emt 0:00:59]} 1/2-1/2

[Event "World Senior chT-50 2019"]
[Site "Rhodes"]
[Date "2019.04.22"]
[Round "7.31"]
[White "Fatalibekova, Elena"]
[Black "Franzen, Thomas"]
[Result "1-0"]
[ECO "A26"]
[WhiteElo "2148"]
[BlackElo "2015"]
[Annotator "NA"]
[PlyCount "103"]
[EventDate "2019.04.16"]
[EventType "team-tourn"]
[EventCountry "GRE"]
[SourceTitle "playchess.com"]
[Source "ChessBase"]
[SourceQuality "1"]
[WhiteTeam "Russia"]
[BlackTeam "Sweden"]
[WhiteTeamCountry "RUS"]
[BlackTeamCountry "SWE"]
[TimeControl "40/5400+30:1800+30"]

1. Nf3 {[%emt 0:00:00]} f5 {[%emt 0:02:44]} 2. c4 {[%emt 0:00:00]} g6 {[%emt 0:00:41]} 3. Nc3 {[%emt 0:01:43]} Nf6 {[%emt 0:00:13]} 4. g3 {[%emt 0:02:39]} Bg7 {[%emt 0:00:53]} 5. Bg2 {[%emt 0:00:03]} d6 {[%emt 0:00:17]} 6. d3 {[%emt 0:01:09]} Nc6 {[%emt 0:04:52]} 7. O-O {[%emt 0:00:24]} O-O {[%emt 0:00:12]} 8. Rb1 {[%emt 0:02:33]} e5 {[%emt 0:09:28]} 9. b4 {[%emt 0:00:26]} h6 {[%emt 0:13:55]} 10. b5 {[%emt 0:00:26]} Ne7 {[%emt 0:01:21]} 11. e4 {[%emt 0:06:48]} Kh7 $11 {[%emt 0:06:44]} 12. exf5 {[%emt 0:12:34]} Nxf5 {[%emt 0:03:42]} 13. Ne4 {[%emt 0:00:21]} Bd7 {[%emt 0:23:37]} 14. a4 {[%emt 0:00:40]} c5 {[%emt 0:01:30]} 15. Nfd2 {[%emt 0:10:31]} Rb8 {[%emt 0:00:46]} 16. Nxf6+ {[%emt 0:00:52]} Qxf6 {[%emt 0:00:52]} 17. Ne4 {[%emt 0:00:08]} Qe7 {[%emt 0:00:21]} 18. Bb2 {[%emt 0:03:08]} b6 {[%emt 0:01:11]} 19. Nc3 {[%emt 0:01:28]} Be6 {[%emt 0:02:36]} 20. Nd5 {[%emt 0:01:10]} Qd7 {[%emt 0:00:09]} 21. Re1 {[%emt 0:06:57]} Rbe8 {[%emt 0:01:33]} 22. a5 {[%emt 0:01:03]} Bxd5 {[%emt 0:04:14]} 23. Bf3 {[%emt 0:00:09]} Be4 24. Bxe4 {[%emt 0:00:31]} Ne7 {[%emt 0:00:51]} 25. Bg2 {[%emt 0:00:42]} Rd8 {[%emt 0:04:28]} 26. Qc2 {[%emt 0:02:41]} Rf7 {[%emt 0:03:27]} 27. axb6 {[%emt 0:02:25]} axb6 {[%emt 0:00:02]} 28. Ra1 {[%emt 0:01:02]} Rdf8 {[%emt 0:00:40]} 29. Re2 {[%emt 0:00:56]} d5 {[%emt 0:04:18]} 30. Rf1 {[%emt 0:01:34]} d4 {[%emt 0:00:42]} 31. Ra1 {[%emt 0:01:22]} Nc8 {[%emt 0:02:18]} 32. Bd5 {[%emt 0:03:05]} Re7 {[%emt 0:00:31]} 33. Ra6 {[%emt 0:03:17]} Qc7 {[%emt 0:00:59]} 34. Bc1 {[%emt 0:00:45]} g5 {[%emt 0:02:49]} 35. Qd1 {[%emt 0:03:42]} Qd8 {[%emt 0:00:54]} 36. Rea2 {[%emt 0:00:25]} Rc7 {[%emt 0:01:02]} 37. Qh5 {[%emt 0:02:03]} Qf6 {[%emt 0:00:07]} 38. Be4+ {[%emt 0:10:11]} Kh8 {[%emt 0:00:05]} 39. Ra8 {[%emt 0:03:38]} Ra7 {[%emt 0:01:50]} 40. R8xa7 {[%emt 0:00:22]} Nxa7 {[%emt 0:00:05]} 41. Bxg5 {[%emt 0:01:29]} Qxg5 {[%emt 0:01:05]} 42. Qxg5 {[%emt 0:00:02]} hxg5 {[%emt 0:00:08]} 43. Rxa7 {[%emt 0:00:03]} Bf6 {[%emt 0:00:37]} 44. Rb7 {[%emt 0:01:11]} Bd8 {[%emt 0:00:29]} 45. f3 {[%emt 0:00:09]} Kg8 {[%emt 0:01:46]} 46. Kg2 {[%emt 0:00:02]} Kh8 {[%emt 0:00:23]} 47. Kh3 {[%emt 0:00:14]} Rf6 {[%emt 0:00:53]} 48. Kg4 {[%emt 0:00:32]} Kg8 {[%emt 0:01:28]} 49. Rd7 {[%emt 0:03:21]} Rf8 {[%emt 0:00:33]} 50. Kh5 {[%emt 0:00:31]} Re8 {[%emt 0:02:45]} 51. Bd5+ {[%emt 0:03:00]} Kh8 {[%emt 0:01:28]} 52. Kg6 {[%emt 0:00:32]} 1-0